Cogmind - Beta 16 @@@ ROGUE MODE // 2026.01.17 @ 12:23:22 Player: leto Result: Self-destructed Performance ------------- Evolutions (2) 1000 Regions Visited (5) 1000 Robots Destroyed (36) 180 Value Destroyed (784) 784 Prototype IDs (32) 640 Alien Tech Used (0) 0 Bonus (333) 333 TOTAL SCORE: 3937 Bonus ------- Follower Combat Kills 33 Aligned with FarCom 300 Cogmind --------- Core Integrity 492/550 Matter 105/300 Energy 250/250 System Corruption 0% Temperature Cool (0) Movement Treading (960) Ox10 Location -8/Materials Parts ------- > --- POWER (1) -------- Ion Engine > --- PROPULSION (4) --- Light Treads > --- UTILITY (4) ------ Humpback Seismic Detector > --- WEAPON (2) ------- Light Assault Rifle Datajack > --- INVENTORY (35) --- Ion Engine Wheel Small Storage Unit Structural Scanner Experimental Sensor Array Modified TNC Grenade Launcher Mining Laser Peak State ------------ > --- POWER ------------ Ion Engine > --- PROPULSION ------- Light Treads Light Treads > --- UTILITY ---------- Humpback Seismic Detector > --- WEAPON ----------- Assault Rifle Datajack > --- INVENTORY -------- Ion Engine Wheel Small Storage Unit Structural Scanner Experimental Sensor Array Modified TNC Light Assault Rifle Grenade Launcher Mining Laser [Rating: 10] Favorites ----------- Power Ion Engine Engine Ion Engine Propulsion Light Treads Treads Light Treads Utility Small Storage Unit Device Seismic Detector Storage Small Storage Unit Weapon Assault Rifle Energy Gun EM Pulse Gun Ballistic Gun Assault Rifle Launcher Grenade Launcher Special Melee Weapon Datajack Build | -11 -10 -10 -10 -9 -8 ------- Run | Yrd Mat Min Exi Min Mat Slots Evolved 4 | . . . . . 4 Power . | . . . . . . Propulsion 2 | . . . . . 2 Utility 2 | . . . . . 2 Weapon . | . . . . . . Parts Attached 16 | 6 3 5 2 . . Power 2 | 1 . 1 . . . Engine 2 | 1 . 1 . . . Core . | . . . . . . Reactor . | . . . . . . Propulsion 3 | 2 . 1 . . . Treads 3 | 2 . 1 . . . Leg . | . . . . . . Wheel . | . . . . . . Hover . | . . . . . . Flight . | . . . . . . Utility 4 | 1 1 1 1 . . Device 2 | . 1 1 . . . Storage 2 | 1 . . 1 . . Processor . | . . . . . . Hackware . | . . . . . . Protection . | . . . . . . Artifact . | . . . . . . Weapon 7 | 2 2 2 1 . . Energy Gun 1 | 1 . . . . . Energy Cannon . | . . . . . . Ballistic Gun 4 | 1 1 2 . . . Ballistic Cannon . | . . . . . . Launcher 1 | . 1 . . . . Special Weapon . | . . . . . . Impact Weapon . | . . . . . . Slashing Weapon . | . . . . . . Piercing Weapon . | . . . . . . Special Melee Weapon 1 | . . . 1 . . Unidentified Prototypes . | . . . . . . Parts Lost 4 | . 1 1 . . 2 Power . | . . . . . . Propulsion 2 | . . 1 . . 1 Utility . | . . . . . . Weapon 2 | . 1 . . . 1 Highest Loss Streak 2 | . 1 1 . . 2 To Critical Strikes 1 | . . 1 . . . Average Backups 7 | 2 5 7 8 10 9 Power . | . 1 1 . 1 1 Propulsion 1 | 1 2 1 1 1 1 Utility 2 | . . 2 3 5 4 Weapon 2 | . 1 1 2 3 2 Tool/Special . | . . . . . . Unused Backups 9 | . 1 1 1 . 6 Power 1 | . . . . . 1 Propulsion 3 | . 1 1 . . 1 Utility 4 | . . . 1 . 3 Weapon 1 | . . . . . 1 Tool/Special . | . . . . . . Average Slot Usage (%) 84 | . 86 85 93 85 61 Engine 13 | . 14 14 14 14 9 Treads 26 | . 28 27 28 28 18 Device 7 | . 5 14 8 . 7 Storage 13 | . 14 14 14 14 9 Energy Gun 1 | . 7 . . . . Ballistic Gun 13 | . 14 14 14 13 9 Special Melee Weapon 6 | . . . 13 14 9 Peak Build Rating 10 | 6 7 8 9 9 10 Average Rating 7 | 4 6 6 8 9 9 On Entrance 6 | . 6 6 8 9 9 Avg Prop Armor Cover (%) . | . . . . . . Naked Turns . | . . . . . . Heaviest Build 209 | 14 15 14 208 208 209 Greatest Support 40 | 40 40 40 40 40 40 Greatest Overweight (x) 5 | . . . 5 5 5 Average Overweight (x) . | . . . . 5 5 Largest Inventory Capacity 35 | 8 8 8 35 35 35 Average Capacity 17 | 7 8 8 19 35 35 Most Carried 10 | 4 8 8 10 10 10 Average Carried 7 | 2 5 7 8 10 8 Final Capacity 35 | 8 8 8 35 35 35 Final Carried 10 | 4 8 8 10 10 8 Class Distribution -------------------- 65% | Mutant 34% | Hauler-Mutant Dominant Class ---------------- Mutant | -10/Materials Mutant | -10/Mines Mutant | -10/Exiles Hauler-Mutant | -9/Mines Hauler-Mutant | -8/Materials Resources | -11 -10 -10 -10 -9 -8 ----------- Run | Yrd Mat Min Exi Min Mat Matter Collected 590 | 178 234 152 . 26 . Remotely . | . . . . . . Salvage Created 727 | . 551 150 . 26 . Parts 65 | . 37 22 . 6 . Haulers Intercepted . | . . . . . . Recyclers Shooed 3 | . 2 1 . . . Parts Field Recycled . | . . . . . . Retrieved Matter . | . . . . . . Parts Self-Destructed . | . . . . . . Prevented . | . . . . . . Parts Restored . | . . . . . . Kills | -11 -10 -10 -10 -9 -8 ------- Run | Yrd Mat Min Exi Min Mat Combat Hostiles Destroyed 30 | . 17 10 . 3 . Guns 7 | . 5 2 . . . AOE 23 | . 12 8 . 3 . Classes Destroyed 6 | . 5 1 . . . Builder 1 | . . 1 . . . Recycler 3 | . 3 . . . . Operator 1 | . 1 . . . . Watcher 1 | . 1 . . . . Swarmer 15 | . 6 6 . 3 . Grunt 15 | . 11 4 . . . Best Kill Streak 8 | . 8 5 . 3 . Combat Bots Only 7 | . 7 5 . 3 . Max Kills in Single Turn 3 | . 3 3 . 3 . Gunslinging . | . . . . . . Exploded 3 | . 2 3 . 3 . Melee . | . . . . . . Uniques/NPCs Destroyed . | . . . . . . Combat | -11 -10 -10 -10 -9 -8 -------- Run | Yrd Mat Min Exi Min Mat Hostile Shots Fired 101 | . 54 22 . 3 22 Missed 34 | . 15 12 . . 7 Hits 67 | . 39 10 . 3 15 Projectile 67 | . 39 10 . 3 15 Critical Strikes 1 | . . 1 . . . Damage Taken 810 | . 399 155 . 31 225 Core 215 | . 91 49 . 17 58 Absorbed by Shields . | . . . . . . Core Remaining (%) 68 | 100 . . . 37 . Volleys Fired 93 | . 46 17 . 1 29 Largest 2 | . 2 1 . 1 1 Hottest 70 | . 70 30 . 30 20 Shots Fired 108 | . 61 17 . 1 29 Gun 92 | . 52 11 . . 29 Cannon . | . . . . . . Launcher 16 | . 9 6 . 1 . Special . | . . . . . . Kinetic 78 | . 38 11 . . 29 Thermal . | . . . . . . Explosive 16 | . 9 6 . 1 . Electromagnetic 14 | . 14 . . . . Robot Hit Streak 8 | . 6 7 . 6 8 Robot Miss Streak 2 | . 2 1 . . 2 Penetration Max . | . . . . . . Secondary Targets . | . . . . . . Shots Hit Robots 77 | . 41 13 2 1 20 Core Hits 52 | . 28 15 . 4 5 Critical Kills . | . . . . . . Critical Parts Destroyed 1 | . 1 . . . . Critical Strikes 1 | . 1 . . . . Destroy 1 | . 1 . . . . Melee Attacks 2 | . . . 2 . . Impact . | . . . . . . Slashing . | . . . . . . Piercing . | . . . . . . Sneak Attacks 2 | . . . 2 . . Combat Hostiles . | . . . . . . Follow-up Attacks . | . . . . . . Damage Inflicted 2142 | . 1332 537 . 120 153 Guns 705 | . 448 104 . . 153 Cannons . | . . . . . . Explosions 1414 | . 872 422 . 120 . Melee . | . . . . . . Ramming 23 | . 12 11 . . . Kinetic 587 | . 330 104 . . 153 Thermal . | . . . . . . Explosive 1414 | . 872 422 . 120 . Electromagnetic 118 | . 118 . . . . Impact . | . . . . . . Slashing . | . . . . . . Piercing . | . . . . . . Highest Corruption . | . . . . . . Average Corruption . | . . . . . . Corruption Purged . | . . . . . . Corruption Blocked . | . . . . . . Overload Shots . | . . . . . . Overflow Damage 87 | . 87 . . . . Projectiles . | . . . . . . Explosions 87 | . 87 . . . . Melee . | . . . . . . Knockbacks 1 | . 1 . . . . Impact 1 | . 1 . . . . Kinetic . | . . . . . . Secondary . | . . . . . . Self-Inflicted Damage 50 | . . 42 . 8 . Shots 3 | . . 2 . 1 . Rammed 4 | . 2 2 . . . Targets Rammed 6 | . 3 3 . . . Kicked . | . . . . . . Crushed 2 | . 1 1 . . . Highest Temperature 36 | . 36 4 . . . Average Temperature 15 | . 16 4 . . . Received Heat Transfer 210 | . 162 48 . . . Siege Activations . | . . . . . . Martial Activations . | . . . . . . Shielding Activations . | . . . . . . Robots Disrupted . | . . . . . . Combat Hostiles . | . . . . . . Robots Corrupted . | . . . . . . Combat Hostiles . | . . . . . . Parts Fried . | . . . . . . Impact Corruptions . | . . . . . . Robots Melted . | . . . . . . Combat Hostiles . | . . . . . . Parts Melted . | . . . . . . Heat Transferred . | . . . . . . Parts Sabotaged . | . . . . . . Parts Stolen . | . . . . . . Parts Stripped . | . . . . . . Power Chain Reactions . | . . . . . . Alert | -11 -10 -10 -10 -9 -8 ------- Run | Yrd Mat Min Exi Min Mat Maximum Alert Level 1 | . 1 1 . . . Low Security (%) 93 | 100 82 99 . 100 100 Level 1 6 | . 17 . . . . Level 2 . | . . . . . . Level 3 . | . . . . . . Level 4 . | . . . . . . Level 5 . | . . . . . . High Security . | . . . . . . Max Security . | . . . . . . Peak Influence 389 | . 389 205 . 78 32 Initial 148 | . . 148 . . . Average 83 | . 113 130 . 30 3 Influence Increases 1009 | . 607 273 . 78 51 Destroy 0b10 Robot/C 620 | . 340 200 . 60 20 Destroy 0b10 Robot/NC 35 | . 25 5 . . 5 Destroy Leader 122 | . 62 40 . 10 10 Allied During Kill 2 | . . . . . 2 Successful Hack 24 | . 10 . . . 14 Disable Machine 45 | . 45 . . . . Destroy Structure 116 | . 80 28 . 8 . Lose Combat Pursuer 45 | . 45 . . . . Influence Decreases 1009 | . 226 473 181 78 51 Entered New Map 414 | . . 233 181 . . Time Decay 548 | . 216 230 . 78 24 Lost Part 27 | . 10 10 . . 7 Lost Ally 20 | . . . . . 20 Squads Dispatched 4 | . 3 . . . 1 Investigation 2 | . 2 . . . . Extermination . | . . . . . . Reinforcement 2 | . 1 . . . 1 Assault . | . . . . . . Garrison . | . . . . . . Intercept . | . . . . . . Searches Triggered . | . . . . . . Construction Impeded . | . . . . . . Haulers Reinforced . | . . . . . . Active Scanning Responses . | . . . . . . Cargo Convoy Interrupts . | . . . . . . Stealth | -11 -10 -10 -10 -9 -8 --------- Run | Yrd Mat Min Exi Min Mat Distress Signals 7 | . 5 . . . 2 Communications Jammed . | . . . . . . Distress Signals . | . . . . . . Times Spotted 45 | . 26 10 . 3 6 Peak Tracking Total 6 | . 6 5 . 3 3 Tactical Retreats 1 | . 1 . . . . Traps | -11 -10 -10 -10 -9 -8 ------- Run | Yrd Mat Min Exi Min Mat Traps Triggered 1 | . 1 . . . . Indirectly . | . . . . . . Trap Hack Attempts . | . . . . . . Triggered . | . . . . . . Disarmed . | . . . . . . Reprogrammed . | . . . . . . Reused . | . . . . . . Traps Extracted . | . . . . . . Installed . | . . . . . . Triggered . | . . . . . . Machines | -11 -10 -10 -10 -9 -8 ---------- Run | Yrd Mat Min Exi Min Mat Machines Disabled 3 | . 3 . . . . Max in Single Turn 2 | . 2 . . . . Machines Repaired . | . . . . . . Machines Dismantled . | . . . . . . Machines Sabotaged . | . . . . . . Overloaded Fab Kills . | . . . . . . Hacking | -11 -10 -10 -10 -9 -8 --------- Run | Yrd Mat Min Exi Min Mat Machines Accessed 6 | . 3 . 2 . 1 Terminals 4 | . 3 . . . 1 Fabricators . | . . . . . . Repair Stations . | . . . . . . Recycling Units . | . . . . . . Scanalyzers . | . . . . . . Garrison Access . | . . . . . . Total Hacks 12 | . 7 . 2 . 3 Successful 6 | . 3 . 2 . 1 Failed 6 | . 4 . . . 2 Catastrophic . | . . . . . . Database Lockouts . | . . . . . . Manual 11 | . 7 . 1 . 3 Terminals 10 | . 7 . . . 3 Fabricators . | . . . . . . Repair Stations . | . . . . . . Recycling Units . | . . . . . . Scanalyzers . | . . . . . . Garrison Access . | . . . . . . Terminal Hacks 2 | . . . 2 . . Record 1 | . . . 1 . . Proto ID Catalog 1 | . . . 1 . . Fabricator Hacks . | . . . . . . Repair Station Hacks . | . . . . . . Recycling Unit Hacks . | . . . . . . Scanalyzer . | . . . . . . Garrison Access Hacks . | . . . . . . Unauthorized Hacks 4 | . 3 . . . 1 Terminals 4 | . 3 . . . 1 Botnet 3 | . 2 . . . 1 Operators 1 | . 1 . . . . Fabricators . | . . . . . . Repair Stations . | . . . . . . Recycling Units . | . . . . . . Scanalyzers . | . . . . . . Garrison Access . | . . . . . . Data Cores Recovered . | . . . . . . Used . | . . . . . . Hacking Detections 4 | . 3 . . . 1 Full Trace Events 1 | . 1 . . . . Feedback Events . | . . . . . . Feedback Blocked . | . . . . . . Robot Schematics Acquired . | . . . . . . Robots Built . | . . . . . . Authchips . | . . . . . . Time . | . . . . . . Total Robot Build Rating . | . . . . . . Part Schematics Acquired . | . . . . . . Parts Built . | . . . . . . Authchips . | . . . . . . Time . | . . . . . . Total Part Build Rating . | . . . . . . Part Studies Acquired . | . . . . . . Parts Repaired . | . . . . . . Time . | . . . . . . Parts Recycled . | . . . . . . Recycled Matter . | . . . . . . Retrieved Matter . | . . . . . . Retrieved Components . | . . . . . . Parts Scanalyzed . | . . . . . . Part Schematics Acquired . | . . . . . . Parts Damaged . | . . . . . . Bothacking | -11 -10 -10 -10 -9 -8 ------------ Run | Yrd Mat Min Exi Min Mat Used RIF Installer . | . . . . . . Robots Hacked 2 | . . . 2 . . Non-combat 1 | . . . 1 . . Combat 1 | . . . 1 . . Robot Hacks Applied 2 | . . . 2 . . parse_system 2 | . . . 2 . . Relay Couplers Released . | . . . . . . Fabnet Peak Effective % . | . . . . . . Robots Rewired . | . . . . . . Allies Hacked . | . . . . . . Hacks Repelled . | . . . . . . Allies | -11 -10 -10 -10 -9 -8 -------- Run | Yrd Mat Min Exi Min Mat Total Allies 1 | . . . . 1 . Largest Group 1 | . . . . 1 1 Highest-Rated Group 31 | . . . . 31 31 Highest-Rated Ally 31 | . . . . 31 31 Total Orders . | . . . . . . Ally Attacks 17 | . . . . . 17 Total Damage 234 | . . . . . 234 Kills 2 | . . . . . 2 Allies Corrupted . | . . . . . . Allies Melted . | . . . . . . Intel | -11 -10 -10 -10 -9 -8 ------- Run | Yrd Mat Min Exi Min Mat Active Infowar (turns) 1030 | . . 462 327 . 241 Seismic 1030 | . . 462 327 . 241 Robot Analysis Total . | . . . . . . Derelict Logs Recovered 2 | . . 1 . 1 . Drone Launches . | . . . . . . Drone Recoveries . | . . . . . . Exploration | -11 -10 -10 -10 -9 -8 ------------- Run | Yrd Mat Min Exi Min Mat Turns Passed 2131 | 67 538 480 564 218 264 Spaces Moved 854 | 38 238 265 242 39 32 Core 5 | 5 . . . . . Treads 849 | 33 238 265 242 39 32 Legs . | . . . . . . Wheels . | . . . . . . Hover . | . . . . . . Flight . | . . . . . . Fastest Speed 50 | 50 160 160 160 560 560 Average Speed 212 | 145 160 160 229 560 560 Slowest Speed 560 | 160 160 160 560 560 560 Overloaded Moves . | . . . . . . Propulsion Burnouts . | . . . . . . Robots Hopped . | . . . . . . Potential Cave-ins . | . . . . . . Cave-ins Triggered . | . . . . . . Exploration Rate (%) 34 | 3 54 72 60 13 5 Regions Visited 5 Branch Regions 3 Pre-discovered Areas 3 | . . . 1 2 . Known Exits Taken 1 | . . 1 . . . Unknown Exits Taken 4 | 1 1 . 1 1 . Scrap Searched 1 | . . 1 . . . Spaces Dug . | . . . . . . Terrain Destroyed 122 | . 77 37 . 8 . Melee . | . . . . . . Projectile . | . . . . . . AOE 122 | . 77 37 . 8 . Terrain Rammed . | . . . . . . Walls Destroyed . | . . . . . . Machines Disabled . | . . . . . . Actions | -11 -10 -10 -10 -9 -8 --------- Run | Yrd Mat Min Exi Min Mat Total 1069 | 47 333 304 254 41 90 Wait 61 | . 31 3 . . 27 Move 849 | 37 237 264 241 38 32 Hop . | . . . . . . Pick Up 20 | 4 6 4 6 . . Fast Attach 9 | 6 1 1 1 . . Attach 9 | . 3 4 . . 2 Detach 4 | . 2 2 . . . Swap 7 | . 2 2 1 2 . Drop 9 | . 2 4 3 . . Fire 93 | . 46 17 . 1 29 Melee 2 | . . . 2 . . Ram . | . . . . . . Kick . | . . . . . . Crush 6 | . 3 3 . . . Escape Stasis . | . . . . . . Rewire . | . . . . . . Trap . | . . . . . . Miscellaneous . | . . . . . . Route ------- -11/Scrapyard -10/Materials (discovered 2 exits: [*Min x2]) -10/Mines (discovered 4 exits: [*Mat x2] / *Exi / [*Sub]) -10/Exiles -9/Mines -8/Materials History --------- Turn | Location | Event 7 | -11/Scrapyard | Discovered new exit (range 14) 68 | -11/Scrapyard | Entered Materials 275 | -10/Materials | Discovered new exit (range 15) 302 | -10/Materials | Build established: Mutant 429 | -10/Materials | Discovered new exit (range 7) 589 | -10/Materials | Destroyed 7 combat bots 606 | -10/Materials | Entered Mines 745 | -10/Mines | Identified exit to Exiles 792 | -10/Mines | Discovered new exit (range 5) 835 | -10/Mines | Discovered new exit (range 15) 893 | -10/Mines | Core integrity fell below 50% 907 | -10/Mines | Found a damaged Exp. Sensor Array with a note attached 910 | -10/Mines | Found Prototype Device 986 | -10/Mines | Discovered new exit (range 10) 1078 | -10/Mines | Deemed a non-threat by the Exiles lab entrance 1086 | -10/Mines | Entered Exiles 1128 | -10/Exiles | Met 8R-AWN 1158 | -10/Exiles | Met EX-HEX 1208 | -10/Exiles | Met EX-BIN 1225 | -10/Exiles | Aligned with FarCom system 1227 | -10/Exiles | Given EX-Vault access code 1264 | -10/Exiles | Opened EX-Vault 1279 | -10/Exiles | Found Modified TNC 1312 | -10/Exiles | Warned to stay clear of 0b10 Research branches 1361 | -10/Exiles | Met EX-DEC 1368 | -10/Exiles | Learned location of Zion (-7) 1605 | -10/Exiles | Discovered new exit (range 10) 1650 | -10/Exiles | Left Exiles lab with Modified TNC 1650 | -10/Exiles | Entered Mines 1653 | -9/Mines | Escorted by a lone wolf Derelict 1673 | -9/Mines | Learned location of Storage (-7) 1694 | -9/Mines | Build established: Hauler-Mutant 1829 | -9/Mines | Discovered new exit (range 8) 1857 | -9/Mines | Learned location of Recycling (-7) 1868 | -9/Mines | Entered Materials 1868 | -8/Materials | Accompanied by 1 ally 1868 | -8/Materials | Evolved 4 slots: Propulsion x2, Utility x2 2132 | -8/Materials | Self-destructed Last Messages --------------- Destroyed Hover Unit. R-06 Scavenger collects Heat Sink. R-06 Scavenger collects Lgt. Treads. Slug penetrates 5C-H1H(g). R-06 Scavenger destroyed. R-06 Scavenger collects Com. Wheel. 5C-H1H(g): "Mission, incomplete...*fzzt*" 5C-H1H(g) destroyed. R-06 Scavenger collects Sml. Storage Unit. Slug penetrates Wall. R-06 Scavenger collects Tractor Beam. Slug penetrates R-06 Scavenger. Penetrated by Slug. Assault Rifle destroyed. Penetrated by Slug. Slug penetrates T-07 Excavator. Penetrated by Slug. Slug penetrates T-07 Excavator. Terminal disabled. Lgt. Treads destroyed. Map ----- +----------------------------------------------------+ | ???????????????????????????????????????? | | ???????????????????????????????????????? | | ???????????????????????????????????????? | | ???????????????????????????????????????? | | ???????????????????????????????????????? | | ???????????????????????????????????????? | | ???????????????????????????????????????? | | ???????????????????????????????######### | | ???????????????????????????????# # | | ???????????????????????????##### # | | ???????????????????????????# # # | | ???????????????????????????# # # | | ???????????????????????????# # # | | ???????????????????????????# + # | | ???????????????????????????# # # | | ???????????????????????????# # # | | ???????????????????????????# # # | | ???????????????????######### # # | | ???????????????????# ] # # # | | ???????????????????# # ######### | | ???????????????????# ""T"" + #???????? | | ???????????????????# """"" # #???????? | | ???????????????????# # #???????? | | ???????????????????######### ##??????? | | ?????????????????########## #??????? | | ?????????? @ #??????? | | ????????????# *% #??????? | | ????????????# h %= % #??????? | | ????????????# u#### #### #??????? | | ???????????????????#t ???#######??????? | | ???????????????????# ?????????????????? | | ???????????????????# ??????????????????? | | ???????????????????#???????????????????? | | ???????????????????????????????????????? | | ???????????????????????????????????????? | | ???????????????????????????????????????? | | ???????????????w???????????????????????? | | ???????????????????????????????????????? | | ???????????????????????????????????????? | | ???????????????????????????????????????? | | ???????????????????????????????????????? | | ???????????????????????????????????????? | | ???????????????????????????????????????? | | ???????????????????????????????????????? | | ???????????????????????????????????????? | | ???????????????????????????????????????? | | ???????????????????????????????????????? | | ???????????????????????????????????????? | | ???????????????????????????????????????? | | ???????????????????????????????????????? | +----------------------------------------------------+ Best States ------------- Heat Dissipation 35 Energy Generation 10 Energy Capacity 250 Matter Stores 300 Matter Capacity 300 Sight Range 16 Terrain Scan Density 10 Evasion (%) 40 Recoil Reduction 2 Item Schematics ----------------- None Robot Schematics ------------------ None Fabricated ------------ Nothing Repaired ---------- Nothing Studied --------- None Alien Tech Used ----------------- None Achievements -------------- None Challenges ------------ None Game ------ Seed ClaymoresTerrorPropulsion Manual? 0 Play Time 00:11:37 Cumulative 24.6 hours Start 2026.01.17 @ 12:12:34 End 2026.01.17 @ 12:23:22 Sessions 1 Manual Loads 0 Difficulty Rogue Special Mode None Game No. 30 Rogue 30 Adventurer 0 Explorer 0 Win Type - Total 0 Types 0/0/0/0/0/0/0/0/0/0 Lore% 14 Gallery% 29 Achievement% 30 Wizard Run 0 Options --------- Layout 1 ASCII 0 Keyboard 1 Movement Vi Keybinds 0 Fullscreen 1 Font 24/Smallcaps Map View 50x35 Zoom Use 0% Tactical HUD 0 Map Filters NONE Filters NONE Steam 1 RUN: 70e1f2c9-4139-4adf-a2c8-808fb6d52e7b